[Event "3rd Manaus Open 2024"]
[Site "Manaus"]
[Date "2024.10.14"]
[Round "4.7"]
[White "Cueto, Jonny"]
[Black "Santiago, Yago De Moura"]
[Result "0-1"]
[ECO "A01"]
[WhiteElo "2099"]
[BlackElo "2460"]
[Annotator "TA"]
[PlyCount "112"]
[EventDate "2024.10.05"]
[EventType "swiss"]
[EventCountry "BRA"]
[SourceTitle "playchess.com"]
[Source "ChessBase"]
[SourceQuality "1"]
[TimeControl "5400+30"]

{[%evp 9,112,0,-18,-7,2,-16,-15,-21,-5,5,-11,-90,-57,-120,-12,-87,-70,-192,-217,-205,-204,-187,-185,-207,-106,-182,-196,-308,-299,-308,-311,-309,-331,-319,-321,-330,-295,-330,-319,-333,-330,-322,-314,-321,-300,-324,-294,-318,-310,-296,-320,-330,-319,-316,-271,-266,-266,-529,-540,-540,-523,-485,-459,-524,-466,-468,-468,-468,-319,-1996,-1995,-1879,-1409,-4727,-4727,-4727,-4727,-4713,-4727,-4828,-3930,-4713,-4713,-6532,-14792,-14792,-14792,-6537,-6685,-5071,-5436,-29965,-29965,-6570,-7129,-29967,-29970,-29973,-29973,-29980,-29981,-29980,-29981,-29979,-29979]} 1. b3 {[%emt 0:05:28]} d5 {[%emt 0:00:52]} 2. Bb2 {[%emt 0:00:05]} e6 {[%emt 0:00:37]} 3. f4 {[%emt 0:00:14]} Nf6 {[%emt 0:00:48]} 4. Nf3 {[%emt 0:00:13]} a5 {[%emt 0:00:08]} 5. a3 {[%emt 0:00:16]} a4 {[%emt 0:01:22]} 6. b4 {[%emt 0:00:31] A01: Nimzowitsch-Larsen Opening.} c5 {[%emt 0:00:07] Beste (Gemakkelijk)} 7. bxc5 $146 {[%emt 0:00:13][%cal Oc2c4]} ({Predecessor:} 7. e3 Qb6 8. Nc3 Bd7 9. Ne5 d4 10. exd4 cxb4 11. Nxd7 Nbxd7 12. Nb5 Ra5 13. Qe2 {1-0 Khalikian,O-Katalymov,B (2415) Yerevan 1977 (11)}) 7... Bxc5 {[%emt 0:00:10]} 8. e3 {[%emt 0:00:07] OK. De stelling is in evenwicht.} Nc6 {[%emt 0:02:00] OK} 9. Bb5 {[%emt 0:04:16] OK} O-O {[%emt 0:05:00] OK} 10. Nc3 {[%emt 0:03:56] Fout (0.8)} (10. Qe2 $11) 10... Qb6 $17 {[%emt 1:24:26] Beste (Gemakkelijk)} 11. d4 {[%emt 0:04:47] Beste} Bd6 {[%emt 0:00:00] Fout (1.1)} (11... Be7 $17 {Dreigt te winnen met ...Ra5.} 12. O-O Ne4) 12. Rb1 {[%emt 0:04:11] [#] blijft gelijk. Fout (0.8)} (12. O-O $1 $11) 12... Ne4 $1 {[%emt 0:00:00][%cal Od6a3] Sterk} {Beter is} 13. Nxe4 {[%emt 0:20:57] Fout (1.2)} (13. O-O $15) 13... dxe4 $19 {[%emt 0:00:00]} 14. Bxc6 {[%emt 0:00:01] OK} Qxc6 {[%emt 0:00:00]} (14... bxc6 15. Bc3 Qd8 16. Ne5) 15. Nd2 {[%emt 0:00:04] OK} b5 {[%emt 0:00:00] OK} 16. O-O {[%emt 0:01:40] OK} {Zwart zou moeten proberen} Qd5 {[%emt 0:00:00] Fout (1.0)} (16... Ba6 $19 {Wit moet nu ...b4 voorkomen.} 17. Rf2 Rac8) 17. c4 {[%emt 0:12:28] was de enige verdediging. Fout (0.8)} bxc4 {[%emt 0:00:00][%cal Oc4c3] Beste (Gemakkelijk)} 18. Qc2 {[%emt 0:00:01] [#] is een betere verdediging. Fout (1.1)} (18. Bc3) 18... c3 $1 {[%emt 0:00:00][%mdl 512] OK} 19. Bxc3 {[%emt 0:00:01] OK} Ba6 {[%emt 0:00:00] OK} (19... Bxa3 20. Ra1 Be7 21. Rxa4 $17) 20. Nxe4 {[%emt 0:00:12] OK} Bxf1 {[%emt 0:00:00] OK} ({Minder sterk is} 20... Bxa3 21. Ng5 f5 22. Rfe1 $19) 21. Nxd6 {[%emt 0:00:14] OK} Bxg2 {[%emt 0:00:00] OK} (21... Qxd6 22. Bb4 Qa6 23. Rxf1 $17 (23. Bxf8 $2 {te hebberig.} Bd3 $19)) 22. Qxg2 {[%emt 0:00:28]} Qxd6 {[%emt 0:00:00] OK} 23. Bb4 {[%emt 0:00:03]} Rab8 {[%emt 0:00:00]} 24. Ra1 {[%emt 0:09:29] OK} ({Natuurlijk niet} 24. Bxd6 Rxb1+ 25. Kf2 Rb2+ 26. Kg3 Rxg2+ 27. Kxg2 Rd8) 24... Rxb4 {[%emt 0:00:00] OK} 25. axb4 {[%emt 0:00:02]} Qxb4 {[%emt 0:00:00][%mdl 4096] Eindspel. KQR-KQR} 26. Qc2 {[%emt 0:00:01]} Qb3 {[%emt 0:00:00] OK} 27. Qxb3 {[%emt 0:01:09]} axb3 {[%emt 0:00:00] KR-KR} 28. Rb1 {[%emt 0:00:00]} Rb8 {[%emt 0:00:00] OK} 29. Rb2 {[%emt 0:00:53]} f5 {[%emt 0:00:00] OK} 30. Kf2 {[%emt 0:01:10] OK} Kf7 {[%emt 0:00:00] OK} 31. Ke2 {[%emt 0:00:05] [#] OK} g5 $1 {[%emt 0:00:00][%mdl 512] OK} 32. fxg5 {[%emt 0:01:41] OK} Kg6 {[%emt 0:00:00] Beste (Gemakkelijk)} 33. h4 $2 {[%emt 0:01:48] Zal wellicht voordeliger blijken. Fout (2.6)} (33. Kd1) 33... Kh5 {[%emt 0:00:00] Beste (Gemakkelijk)} 34. Kf3 {[%emt 0:00:11] OK} Kxh4 {[%emt 0:00:00] OK} 35. Kf4 {[%emt 0:00:02] OK} Kh3 {[%emt 0:07:30] Ontwijkt Rh2+} 36. d5 {[%emt 0:06:51]} exd5 {[%emt 0:00:15]} 37. Kxf5 {[%emt 0:00:10] Beste} Kg3 {[%emt 0:01:22] ...Kf3 is de sterke dreiging. OK} 38. Ke5 {[%emt 0:00:33] Beste} Rb5 {[%emt 0:03:13] Sterke dreiging met ...Kg4. OK} 39. Kd6 $2 {[%emt 0:05:02] Fout (16.8)} (39. Kd4) 39... Kf3 {[%emt 0:00:16] Beste} 40. Kc6 {[%emt 0:00:01] OK} Rb8 {[%emt 0:00:08]} 41. Kxd5 {[%emt 0:00:05]} Kxe3 {[%emt 0:00:05]} 42. Kc4 {[%emt 0:01:34]} Kf4 {[%emt 0:00:07]} 43. Kc3 {[%emt 0:00:59]} Kxg5 {[%emt 0:00:08]} 44. Rg2+ {[%emt 0:00:12]} Kf4 {[%emt 0:00:06][%cal Ob3b2]} 45. Kb2 {[%emt 0:00:09]} h5 {[%emt 0:00:08]} 46. Rg7 {[%emt 0:01:03]} h4 {[%emt 0:00:25]} 47. Rf7+ {[%emt 0:00:03]} Kg3 {[%emt 0:00:13]} 48. Rg7+ {[%emt 0:00:00]} Kh2 {[%emt 0:00:08]} 49. Rg4 {[%emt 0:00:23]} h3 {[%emt 0:00:07]} 50. Rg7 {[%emt 0:00:06]} Kh1 {[%emt 0:00:30]} 51. Rg3 {[%emt 0:00:05]} h2 {[%emt 0:00:08] ( -> ...Rf8)} 52. Rg7 {[%emt 0:00:10]} Rf8 {[%emt 0:00:10] Zwart zet mat.} 53. Kxb3 {[%emt 0:00:03]} Rf1 {[%emt 0:00:14]} 54. Kc2 {[%emt 0:00:30]} Rg1 {[%emt 0:00:08]} 55. Rh7 {[%emt 0:01:24]} Kg2 {[%emt 0:00:06]} 56. Rg7+ {[%emt 0:00:05]} Kf3 {[%emt 0:00:05] Blunder waarde: Wit=0.71/Zwart=0.10 (erg precies) .  Fout:        	Wit=7      	Zwart=2      OK:         	Wit=15     	Zwart=17     Beste:        	Wit=3      	Zwart=6      Sterk:        	---       	Zwart=1} 0-1

[Event "3rd Manaus Open 2024"]
[Site "Manaus"]
[Date "2024.10.14"]
[Round "4.8"]
[White "Zanette, Edgard Vinicius"]
[Black "Cubas, Jose Fernando"]
[Result "0-1"]
[ECO "D00"]
[WhiteElo "2064"]
[BlackElo "2412"]
[Annotator "RC"]
[PlyCount "60"]
[EventDate "2024.10.05"]
[EventType "swiss"]
[EventCountry "BRA"]
[SourceTitle "playchess.com"]
[Source "ChessBase"]
[SourceQuality "1"]
[TimeControl "5400+30"]

1. d4 {[%emt 0:00:05]} d5 {[%emt 0:02:23]} 2. Bf4 {[%emt 0:00:16]} Nf6 {[%emt 0:00:37]} 3. Nc3 {[%emt 0:00:16]} e6 {[%emt 0:01:43]} 4. e3 {[%emt 0:00:42]} a6 {[%emt 0:02:04]} 5. a3 {[%emt 0:07:24]} Bd6 {[%emt 0:01:40]} 6. Nf3 {[%emt 0:00:17]} Bxf4 {[%emt 0:02:30]} 7. exf4 {[%emt 0:00:10]} Qd6 {[%emt 0:00:03]} 8. Ne5 {[%emt 0:05:20]} c5 {[%emt 0:00:06]} 9. dxc5 {[%emt 0:00:41]} Qxc5 {[%emt 0:00:05]} 10. Bd3 {[%emt 0:02:47]} Nc6 {[%emt 0:02:57]} 11. Nxc6 {[%emt 0:06:08]} bxc6 {[%emt 0:01:14]} 12. O-O {[%emt 0:00:18]} Qd6 {[%emt 0:01:55]} 13. Qf3 {[%emt 0:04:39]} O-O {[%emt 0:02:34]} 14. Rfe1 {[%emt 0:00:38]} Rb8 {[%emt 0:01:09]} 15. g4 {[%emt 0:03:46]} g6 {[%emt 0:01:17]} 16. b4 {[%emt 0:04:46]} c5 {[%emt 0:00:55]} 17. bxc5 {[%emt 0:00:21]} Qxc5 {[%emt 0:00:05]} 18. Ne2 {[%emt 0:00:21]} Ne4 {[%emt 0:14:09]} 19. Qe3 {[%emt 0:00:59]} Qc7 {[%emt 0:02:13]} 20. Nd4 {[%emt 1:00:36]} a5 {[%emt 0:10:00]} 21. Rab1 {[%emt 0:00:00]} Bd7 {[%emt 0:09:44]} 22. Bxe4 {[%emt 0:00:00]} dxe4 {[%emt 0:00:06]} 23. Qxe4 {[%emt 0:00:00]} Rxb1 {[%emt 0:02:56]} 24. Rxb1 {[%emt 0:00:00]} Qc4 {[%emt 0:00:24]} 25. g5 {[%emt 0:00:00]} Rd8 {[%emt 0:00:42]} 26. Rb3 {[%emt 0:00:00]} Ba4 {[%emt 0:03:05]} 27. Rd3 {[%emt 0:00:00]} Bxc2 {[%emt 0:01:00]} 28. Nxe6 {[%emt 0:00:00]} Qxd3 {[%emt 0:00:20]} 29. Qe5 {[%emt 0:00:00]} Qd1+ {[%emt 0:00:12]} 30. Kg2 {[%emt 0:00:00]} Qg4+ {[%emt 0:00:17]} 0-1

[Event "3rd Manaus Open 2024"]
[Site "Manaus"]
[Date "2024.10.14"]
[Round "4.9"]
[White "Carvalho, Felipe Lobo C."]
[Black "Do Valle Cardoso, Lucas"]
[Result "0-1"]
[ECO "D02"]
[WhiteElo "2062"]
[BlackElo "2375"]
[Annotator "RC"]
[PlyCount "60"]
[EventDate "2024.10.05"]
[EventType "swiss"]
[EventCountry "BRA"]
[SourceTitle "playchess.com"]
[Source "ChessBase"]
[SourceQuality "1"]
[TimeControl "5400+30"]

1. d4 {[%emt 0:03:51]} d5 {[%emt 0:00:10]} 2. Bf4 {[%emt 0:00:07]} c5 {[%emt 0:00:12]} 3. e3 {[%emt 0:00:02]} Nc6 {[%emt 0:00:10]} 4. Nf3 {[%emt 0:00:12]} Nf6 {[%emt 1:31:58]} 5. c3 {[%emt 0:02:10]} Qb6 {[%emt 0:00:00]} 6. Qb3 {[%emt 0:00:14]} c4 {[%emt 0:00:00]} 7. Qc2 {[%emt 0:00:04]} Bf5 {[%emt 0:00:00]} 8. Qc1 {[%emt 0:00:11]} e6 {[%emt 0:00:00]} 9. h3 {[%emt 0:01:15]} Be7 {[%emt 0:00:00]} 10. Nbd2 {[%emt 0:00:30]} O-O {[%emt 0:00:00]} 11. Be2 {[%emt 0:00:31]} Rfc8 {[%emt 0:00:00]} 12. O-O {[%emt 0:01:55]} Qd8 {[%emt 0:00:00]} 13. Nh4 {[%emt 0:04:21]} Be4 {[%emt 0:00:00]} 14. Nhf3 {[%emt 0:02:45]} Bg6 {[%emt 0:00:00]} 15. Nh4 {[%emt 0:01:58]} Bh5 {[%emt 0:00:00]} 16. g4 {[%emt 0:00:55]} Bg6 {[%emt 0:00:00]} 17. Nxg6 {[%emt 0:01:23]} hxg6 18. Qc2 {[%emt 0:10:17]} b5 {[%emt 0:00:00]} 19. e4 {[%emt 0:06:51]} dxe4 {[%emt 0:00:00]} 20. Nxe4 {[%emt 0:00:21]} Nd5 {[%emt 0:00:00]} 21. Qd2 {[%emt 0:09:13]} f5 {[%emt 0:00:00]} 22. Nc5 {[%emt 0:05:27]} e5 {[%emt 0:00:00]} 23. Bh2 {[%emt 0:02:10]} Bg5 {[%emt 0:00:00]} 24. Qd1 {[%emt 0:03:53]} e4 {[%emt 0:00:00]} 25. gxf5 {[%emt 0:04:04]} gxf5 {[%emt 0:00:00]} 26. Ne6 {[%emt 0:00:24]} Qf6 {[%emt 0:00:00]} 27. Nxg5 {[%emt 0:00:03]} Qxg5+ {[%emt 0:00:00]} 28. Kh1 {[%emt 0:00:04]} Qh4 {[%emt 0:00:00]} 29. Rg1 {[%emt 0:01:42]} Qxf2 {[%emt 0:00:00]} 30. Rg2 {[%emt 0:01:45]} Qxg2+ {[%emt 0:13:00]} 0-1

[Event "3rd Manaus Open 2024"]
[Site "Manaus"]
[Date "2024.10.14"]
[Round "4.10"]
[White "Pinero Rodriguez, Carlos Jose"]
[Black "McDonald, Ian"]
[Result "0-1"]
[ECO "D15"]
[WhiteElo "2305"]
[BlackElo "1923"]
[Annotator "RC"]
[PlyCount "72"]
[EventDate "2024.10.05"]
[EventType "swiss"]
[EventCountry "BRA"]
[SourceTitle "playchess.com"]
[Source "ChessBase"]
[SourceQuality "1"]
[TimeControl "5400+30"]

1. d4 {[%emt 0:00:32]} d5 {[%emt 0:01:46]} 2. c4 {[%emt 0:00:07]} c6 {[%emt 0:00:01]} 3. Nf3 {[%emt 0:01:56]} Nf6 {[%emt 0:00:26]} 4. Nc3 {[%emt 0:01:45]} Ne4 {[%emt 0:00:29]} 5. cxd5 {[%emt 0:05:04]} cxd5 {[%emt 0:14:05]} 6. Qa4+ {[%emt 0:02:44]} Nc6 {[%emt 0:08:41]} 7. Ne5 {[%emt 0:05:21]} Nxc3 {[%emt 0:03:18]} 8. bxc3 {[%emt 0:00:07]} Qa5 {[%emt 0:00:02]} 9. Qxa5 {[%emt 0:00:25]} Nxa5 {[%emt 0:00:02]} 10. e4 {[%emt 0:00:12]} e6 {[%emt 0:14:13]} 11. Bb5+ {[%emt 0:01:34]} Nc6 {[%emt 0:00:17]} 12. exd5 {[%emt 0:04:28]} exd5 {[%emt 0:00:01]} 13. O-O {[%emt 0:02:11]} a6 {[%emt 0:03:42]} 14. Ba4 {[%emt 0:00:42]} b5 {[%emt 0:03:31]} 15. Bb3 {[%emt 0:01:34]} Ne7 {[%emt 0:00:19]} 16. Re1 {[%emt 0:02:06]} Be6 {[%emt 0:17:35]} 17. a4 {[%emt 0:00:33]} b4 {[%emt 0:01:30]} 18. cxb4 {[%emt 0:00:07]} Nf5 {[%emt 0:00:02]} 19. Nc6 {[%emt 0:01:26]} Kd7 {[%emt 0:00:54]} 20. Ne5+ {[%emt 0:00:31]} Kc7 {[%emt 0:00:41]} 21. Bf4 {[%emt 0:00:14]} Kb7 {[%emt 0:00:03]} 22. Rec1 {[%emt 0:11:41]} Nxd4 {[%emt 0:08:25]} 23. Bd1 {[%emt 0:00:37]} Bd6 {[%emt 0:00:21]} 24. Nd3 {[%emt 0:02:44]} Bxf4 {[%emt 0:00:02]} 25. Nxf4 {[%emt 0:00:01]} Rac8 {[%emt 0:00:28]} 26. Nd3 {[%emt 0:00:34]} Rc4 {[%emt 0:00:01]} 27. Nc5+ {[%emt 0:02:21]} Ka7 {[%emt 0:01:22]} 28. Rxc4 {[%emt 0:15:06]} dxc4 {[%emt 0:00:02]} 29. Rc1 {[%emt 0:00:32]} Rc8 {[%emt 0:01:09]} 30. Rc3 {[%emt 0:06:43]} a5 {[%emt 0:00:22]} 31. Nxe6 {[%emt 0:00:56]} fxe6 {[%emt 0:00:41]} 32. b5 {[%emt 0:07:24]} Kb6 {[%emt 0:00:01]} 33. Kf1 {[%emt 0:00:39]} Kc5 {[%emt 0:00:09]} 34. Rc1 {[%emt 0:01:34]} Kb4 {[%emt 0:02:10]} 35. b6 {[%emt 0:01:41]} Rb8 {[%emt 0:02:39]} 36. Rb1+ {[%emt 0:00:41]} Nb3 {[%emt 0:00:02]} 0-1

[Event "3rd Manaus Open 2024"]
[Site "Manaus"]
[Date "2024.10.12"]
[Round "5"]
[White "De Pontes e Souza, Jose Geraldo"]
[Black "Pinero Rodriguez, Carlos Jose"]
[Result "0-1"]
[ECO "B43"]
[WhiteElo "1837"]
[BlackElo "2305"]
[Annotator "RC"]
[PlyCount "88"]
[EventDate "2024.10.05"]
[EventType "swiss"]
[EventCountry "BRA"]
[SourceTitle "playchess.com"]
[Source "ChessBase"]
[SourceQuality "1"]
[TimeControl "5400+30"]

1. e4 c5 2. Nf3 e6 3. d4 cxd4 4. Nxd4 a6 5. a3 Qc7 6. Nc3 Nf6 7. Bd3 b5 8. O-O h5 9. h3 Bb7 10. Qe2 d6 11. f4 Nbd7 12. Nf3 h4 13. Kh1 Nh5 14. Qf2 Ng3+ 15. Kg1 Nxf1 16. Kxf1 Be7 17. Be3 Rc8 18. Re1 Nc5 19. f5 e5 20. Bg5 Bxg5 21. Nxg5 Nxd3 22. cxd3 Qc5 23. Re3 Rh5 24. Nf3 a5 25. Re2 Qb4 26. axb4 axb4 27. Nd1 Ba6 28. Rd2 f6 29. Ne3 b3 30. Ne1 Rc2 31. Nd5 Rc1 32. Nc3 Ke7 33. Ke2 Bb7 34. Nf3 Rh8 35. d4 Rxc3 36. bxc3 Bxe4 37. dxe5 dxe5 38. Rb2 Bxf3+ 39. Ke1 Rc8 40. Qxf3 Rb8 41. Qe3 Kd6 42. Qd3+ Kc5 43. Rb1 Rd8 44. Qe3+ Kc4 0-1

[Event "3rd Manaus Open 2024"]
[Site "Manaus"]
[Date "2024.10.14"]
[Round "5.1"]
[White "Molina, Roberto Junio Brito"]
[Black "Leitao, Rafael"]
[Result "1/2-1/2"]
[ECO "E15"]
[WhiteElo "2381"]
[BlackElo "2592"]
[Annotator "TA"]
[PlyCount "103"]
[EventDate "2024.10.05"]
[EventType "swiss"]
[EventCountry "BRA"]
[SourceTitle "playchess.com"]
[Source "ChessBase"]
[SourceQuality "1"]
[TimeControl "5400+30"]

{[%evp 20,103,34,36,43,25,27,23,28,22,31,15,25,22,29,13,28,9,19,27,22,14,25,14,20,14,20,16,12,8,14,4,13,11,11,13,13,7,11,15,8,8,16,2,8,5,10,16,11,10,14,8,8,0,0,0,0,0,0,0,0,0,0,0,0,0,0,0,0,0,0,0,0,0,0,0,0,-8,-8,-8,-8,-8,-8,-8,-8,-8]} 1. d4 {[%emt 0:18:14]} Nf6 {[%emt 0:00:13]} 2. c4 {[%emt 0:00:06]} e6 {[%emt 0:00:17]} 3. Nf3 {[%emt 0:00:05]} b6 {[%emt 0:01:22]} 4. g3 {[%emt 0:00:11]} Ba6 {[%emt 0:00:16]} 5. Nbd2 {[%emt 0:00:41]} Bb7 {[%emt 0:07:51]} 6. Bg2 {[%emt 0:00:33]} Be7 {[%emt 0:00:15]} 7. O-O {[%emt 0:00:20][%cal Be1g1,Bg1g2,Bg2f3,Bf3e2][%mdl 32]} O-O {[%emt 0:01:15]} 8. b3 {[%emt 0:03:39]} c5 {[%emt 0:01:47]} 9. Bb2 {[%emt 0:00:55]} cxd4 {[%emt 0:05:56]} 10. Nxd4 {[%emt 0:10:36]} Bxg2 {[%emt 0:00:56]} 11. Kxg2 {[%emt 0:00:01]} d5 {[%emt 0:08:01]} 12. e3 {[%emt 0:01:01]} dxc4 {[%emt 0:21:44]} 13. Nxc4 {[%emt 0:02:03]} Qd5+ {[%emt 0:00:26] White has an edge.} 14. Qf3 {[%emt 0:00:17]} Rc8 {[%emt 0:00:56]} (14... Qxf3+ {simplifies} 15. Kxf3 Rc8 16. Rfd1 Nbd7) 15. Rfd1 {[%emt 0:02:37]} Qxf3+ {[%emt 0:05:50]} 16. Kxf3 {[%emt 0:01:41]} Nbd7 {[%emt 0:01:41]} 17. Rac1 {[%emt 0:11:09]} a6 {[%emt 0:00:40]} 18. Ke2 {[%emt 0:00:50]} Ra7 {[%emt 0:05:59]} 19. f3 {[%emt 0:13:02]} Rac7 {[%emt 0:01:21]} 20. e4 {[%emt 0:00:17]} Kf8 {[%emt 0:02:08]} 21. Ne3 {[%emt 0:07:06]} Rxc1 {[%emt 0:01:59] The position is equal.} 22. Rxc1 {[%emt 0:00:49]} Rxc1 {[%emt 0:00:06]} 23. Bxc1 {[%emt 0:00:01]} Nb8 {[%emt 0:04:46]} 24. Nc4 {[%emt 0:06:02][%cal Oc1f4]} Nfd7 {[%emt 0:01:18]} 25. Be3 {[%emt 0:01:03]} Bc5 {[%emt 0:01:52]} 26. f4 {[%emt 0:05:30]} Ke7 {[%emt 0:03:26]} 27. e5 {[%emt 0:01:27]} f6 {[%emt 0:05:51]} 28. exf6+ {[%emt 0:02:05]} Nxf6 {[%emt 0:06:25]} 29. Nc2 {[%emt 0:04:24]} Bxe3 {[%emt 0:00:37]} 30. N2xe3 $11 {[%emt 0:00:11][%mdl 4096] Endgame. KNN-KNN} Nfd7 {[%emt 0:02:57]} 31. Nd2 {[%emt 0:04:37]} Nc6 {[%emt 0:00:42]} 32. Ne4 {[%emt 0:00:18]} Nf6 {[%emt 0:01:53]} 33. Nxf6 {[%emt 0:01:41]} gxf6 {[%emt 0:00:10] KN-KN} 34. g4 {[%emt 0:01:14]} b5 {[%emt 0:00:33]} 35. Nc2 {[%emt 0:01:18]} Kd6 {[%emt 0:02:38]} 36. Kd3 {[%emt 0:00:28]} f5 {[%emt 0:01:31]} 37. g5 {[%emt 0:00:15]} e5 {[%emt 0:00:28]} 38. Ke3 {[%emt 0:01:20]} Ke6 {[%emt 0:01:12]} 39. h4 {[%emt 0:00:55]} Ne7 {[%emt 0:00:54] ...Nd5+ would now be deadly.} 40. fxe5 {[%emt 0:00:29]} Kxe5 {[%emt 0:00:17]} 41. Nb4 {[%emt 0:00:20]} f4+ {[%emt 0:00:43]} 42. Kf3 {[%emt 0:00:29]} Kf5 {[%emt 0:00:13]} 43. Nxa6 {[%emt 0:00:36]} Nc6 {[%emt 0:00:17]} 44. Nc7 {[%emt 0:00:36]} Nd4+ {[%emt 0:01:07]} 45. Kf2 {[%emt 0:00:02]} Kg4 {[%emt 0:00:20]} 46. Nd5 {[%emt 0:01:04]} Kxh4 {[%emt 0:00:43]} 47. Nxf4 {[%emt 0:00:26]} Kxg5 {[%emt 0:00:06]} 48. Ke3 {[%emt 0:00:44]} Nc2+ {[%emt 0:00:56]} 49. Kf3 {[%emt 0:00:25]} b4 {[%emt 0:01:14]} 50. Nd3 {[%emt 0:00:28]} h5 {[%emt 0:00:30]} 51. Kg3 {[%emt 0:00:12]} Kf5 {[%emt 0:00:33]} 52. Kh4 {[%emt 0:01:37] Weighted Error Value: White=0.05 (flawless) /Black=0.02 (flawless) .  OK:         	White=16    	Black=24     Best:        	White=1     	Black=1} 1/2-1/2

[Event "3rd Manaus Open 2024"]
[Site "Manaus"]
[Date "2024.10.14"]
[Round "5.2"]
[White "Santiago, Yago De Moura"]
[Black "Perdomo, Leandro"]
[Result "1/2-1/2"]
[ECO "E93"]
[WhiteElo "2460"]
[BlackElo "2356"]
[Annotator "TA"]
[PlyCount "55"]
[EventDate "2024.10.05"]
[EventType "swiss"]
[EventCountry "BRA"]
[SourceTitle "playchess.com"]
[Source "ChessBase"]
[SourceQuality "1"]
[TimeControl "5400+30"]

{[%evp 15,55,58,56,80,76,70,69,36,52,53,91,101,61,41,78,64,64,29,37,0,0,0,26,11,34,-194,-151,-148,-106,-106,-100,-102,-87,-106,-70,-116,0,-13,0,0,0,-326]} 1. d4 {[%emt 0:00:05] Mikhalevski,Victor} Nf6 {[%emt 0:00:01]} 2. c4 {[%emt 0:00:08]} g6 {[%emt 0:00:02]} 3. Nc3 {[%emt 0:00:08]} Bg7 {[%emt 0:00:02]} 4. e4 {[%emt 0:00:08]} d6 {[%emt 0:00:02]} 5. Nf3 {[%emt 0:00:08]} O-O {[%emt 0:00:03]} 6. Be2 {[%emt 0:00:06]} e5 {[%emt 0:00:02]} 7. d5 {[%emt 0:00:07]} Nbd7 {[%emt 1:33:48]} 8. Qc2 {[%emt 0:01:51]} a5 {[%emt 0:00:00]} 9. h3 {[%emt 0:00:20] E93: Konings-Indisch: Klassiek: Petrosian Systeem met 7...Pbd7.} Nh5 {[%emt 0:01:00]} 10. g3 {[%emt 0:02:31] Tegen Nf4. Wit is actiever. OK} Nc5 {[%emt 0:00:00] OK} 11. Be3 {[%emt 0:20:08] OK. Wit staat iets beter.} f5 {[%emt 0:00:00] OK} 12. Nd2 {[%emt 0:10:38] OK} Nf6 {[%emt 0:00:00] Onnauwkeurig} 13. O-O-O $1 {[%emt 0:10:20] Sterk} b6 {[%emt 0:00:00]} 14. h4 $146 {[%emt 0:03:03]} ({Predecessor:} 14. Rdg1 f4 15. Bxc5 bxc5 16. g4 Bd7 17. g5 Nh5 18. Bg4 f3 19. Bxf3 Nf4 20. Bg4 Bxg4 21. Rxg4 {1-0 Vallejo Pons,F (2681)-Radjabov,T (2682) ESP-chT Honor Gp2 49th 2005 (1)}) 14... h5 {[%emt 0:00:00] Onnauwkeurig} 15. f3 {[%emt 0:10:51] OK} Qe8 {[%emt 0:00:00]} 16. Bxc5 {[%emt 0:10:30] Onnauwkeurig} bxc5 {[%emt 0:00:00]} 17. Bd3 {[%emt 0:00:16] Onnauwkeurig} Bh6 {[%emt 0:00:00]} 18. exf5 {[%emt 0:00:51]} Bxf5 {[%emt 0:00:00] Onnauwkeurig} 19. Kb1 {[%emt 0:04:15] OK} ({Veel zwakker is} 19. Bxf5 gxf5 20. Kb1 (20. Qxf5 Ng4 $17) 20... Qg6 $15) 19... Rb8 {[%emt 0:00:00][%cal Oe5e4] [#] OK} (19... Bxd2 $5 {vereenvoudigt} 20. Rxd2 Qd7 21. a4 Kg7) 20. g4 $2 {[%emt 0:05:42] Verliest partij (2.3)} Bxd3 {[%emt 0:01:10]} 21. Qxd3 {[%emt 0:00:02] g5 is de sterke dreiging.} e4 {[%emt 0:00:04]} 22. Ndxe4 {[%emt 0:14:15] OK} (22. Ncxe4 Nxe4 23. Qxe4 (23. Nxe4 hxg4 24. Rhe1 Qd7 $11) 23... Qxe4+ 24. Nxe4 Rxf3 $19 (24... Bg7 $2 25. Rd2 $19)) 22... Nxe4 {[%emt 0:00:02]} 23. Qxe4 {[%emt 0:00:10]} Qxe4+ {[%emt 0:00:06]} 24. Nxe4 {[%emt 0:00:02]} Bg7 {[%emt 0:01:07][%cal Rb8b2] Onnauwkeurig} {Wit zou moeten proberen} 25. b3 {[%emt 0:00:50] [#] Fout (0.5)} (25. Rd2 $1 $15) {Zwart zou moeten spelen} 25... hxg4 {[%emt 0:05:31] Fout (1.0)} ({Neem niet} 25... Rxf3 26. gxh5 a4 27. Rhf1 Rxf1 28. Rxf1 $11) (25... a4 $1 $17 {[%cal Ra4b3]} 26. Nd2 axb3 27. axb3 hxg4 28. fxg4 Ra8) 26. fxg4 $11 {[%emt 0:06:05] De stelling is in evenwicht.} Rf4 {[%csl LRe4,LRg4]} 27. Rde1 {[%emt 0:00:30] OK} a4 {[%cal Ra4b3] OK} 28. Nd2 $2 {[%emt 0:00:30][%mdl 40960] Wit staat stabiel.   Blunder waarde: Wit=0.28 (precies) /Zwart=0.22 (precies) . Verliest partij (3.3).  Verliest partij:   	Wit=2      	---        Fout:        	Wit=1      	Zwart=1      Onnauwkeurig:    	Wit=2      	Zwart=4      OK:         	Wit=7      	Zwart=4      Sterk:        	Wit=1      	---       . Een verassend resultaat.} (28. Kc2 $1 $11) 1/2-1/2